[Event "*** Titled Tuesday Blitz"]
[Site "Chess.com"]
[Date "2020.10.20"]
[Round "11"]
[White "GelmanAlexander"]
[Black "AndrewDGreen"]
[Result "0-1"]
[WhiteElo "2563"]
[BlackElo "2415"]
[TimeControl "180+1"]
[EndTime "12:08:44 PDT"]
[Termination "AndrewDGreen won on time"]

1. d4 {[%clk 0:03:00.9]} 1... Nf6 {[%clk 0:02:58.9]} 2. Nc3 {[%clk 0:03:00.6]}
2... d5 {[%clk 0:02:55.1]} 3. Bf4 {[%clk 0:03:00]} 3... a6 {[%clk 0:02:55]} 4.
e3 {[%clk 0:02:59.8]} 4... e6 {[%clk 0:02:55.6]} 5. g4 {[%clk 0:02:59.4]} 5...
Bb4 {[%clk 0:02:53]} 6. Bg2 {[%clk 0:02:55.8]} 6... c5 {[%clk 0:02:49]} 7. g5
{[%clk 0:02:45.6]} 7... Nfd7 {[%clk 0:02:45.9]} 8. Nf3 {[%clk 0:02:33.7]} 8...
Bxc3+ {[%clk 0:02:35.6]} 9. bxc3 {[%clk 0:02:33.6]} 9... Qa5 {[%clk 0:02:35.7]}
10. O-O {[%clk 0:02:33.2]} 10... Qxc3 {[%clk 0:02:31.6]} 11. Rb1 {[%clk
0:02:33.1]} 11... Nc6 {[%clk 0:02:29.6]} 12. h4 {[%clk 0:02:28.5]} 12... b5
{[%clk 0:02:16.7]} 13. h5 {[%clk 0:02:27.4]} 13... Bb7 {[%clk 0:02:09.5]} 14. a4
{[%clk 0:02:24.7]} 14... Qa5 {[%clk 0:02:03.2]} 15. axb5 {[%clk 0:02:21.8]}
15... axb5 {[%clk 0:02:03.1]} 16. h6 {[%clk 0:02:17.1]} 16... gxh6 {[%clk
0:02:00.7]} 17. dxc5 {[%clk 0:02:06.4]} 17... Nxc5 {[%clk 0:01:57.8]} 18. Nd4
{[%clk 0:01:49.3]} 18... hxg5 {[%clk 0:00:53]} 19. Rxb5 {[%clk 0:01:47.9]} 19...
Qa7 {[%clk 0:00:48.6]} 20. Bd6 {[%clk 0:01:17.5]} 20... Ne4 {[%clk 0:00:43.1]}
21. Bxe4 {[%clk 0:01:16.6]} 21... dxe4 {[%clk 0:00:44]} 22. Rxg5 {[%clk
0:01:04.8]} 22... Nxd4 {[%clk 0:00:38.1]} 23. exd4 {[%clk 0:01:05.7]} 23... Kd7
{[%clk 0:00:36.1]} 24. Bc5 {[%clk 0:00:55.4]} 24... Qa2 {[%clk 0:00:32.9]} 25.
d5 {[%clk 0:00:40.8]} 25... Bxd5 {[%clk 0:00:29.1]} 26. Qd4 {[%clk 0:00:38]}
26... Rhg8 {[%clk 0:00:25.9]} 27. Rg3 {[%clk 0:00:27.4]} 27... Qxc2 {[%clk
0:00:18.2]} 28. Bb4 {[%clk 0:00:17.3]} 28... e3 {[%clk 0:00:15.1]} 29. Qxe3
{[%clk 0:00:15]} 29... Rg6 {[%clk 0:00:10.1]} 30. Qe5 {[%clk 0:00:11.6]} 30...
Rxg3+ {[%clk 0:00:07.8]} 31. Qxg3 {[%clk 0:00:07.6]} 31... h5 {[%clk 0:00:06.5]}
32. Qd6+ {[%clk 0:00:07.1]} 32... Kc8 {[%clk 0:00:06]} 33. Kh2 {[%clk 0:00:04]}
33... h4 {[%clk 0:00:05.5]} 34. Rg1 {[%clk 0:00:03.1]} 34... Kb7 {[%clk
0:00:04.6]} 35. Qd7+ {[%clk 0:00:03.1]} 35... Kb6 {[%clk 0:00:05.2]} 36. Qd6+
{[%clk 0:00:03.1]} 36... Kb5 {[%clk 0:00:05.6]} 37. Bc5 {[%clk 0:00:01.4]} 37...
Qe4 {[%clk 0:00:04.8]} 0-1

[Event "*** Titled Tuesday Blitz"]
[Site "Chess.com"]
[Date "2020.10.20"]
[Round "11"]
[White "PotapovaM"]
[Black "cstevens1"]
[Result "1-0"]
[WhiteElo "2545"]
[BlackElo "2659"]
[TimeControl "180+1"]
[EndTime "12:08:47 PDT"]
[Termination "PotapovaM won on time"]

1. d4 {[%clk 0:03:00.9]} 1... Nf6 {[%clk 0:02:59.2]} 2. c4 {[%clk 0:03:01.4]}
2... Nc6 {[%clk 0:02:58.3]} 3. Nf3 {[%clk 0:03:01.3]} 3... e6 {[%clk 0:02:58.4]}
4. a3 {[%clk 0:03:01.9]} 4... g6 {[%clk 0:02:58]} 5. g3 {[%clk 0:03:02]} 5...
Bg7 {[%clk 0:02:58.2]} 6. Bg2 {[%clk 0:03:02.7]} 6... d6 {[%clk 0:02:58.5]} 7.
O-O {[%clk 0:03:03]} 7... O-O {[%clk 0:02:59.1]} 8. Nc3 {[%clk 0:03:02.7]} 8...
Re8 {[%clk 0:02:59.5]} 9. e3 {[%clk 0:02:52.2]} 9... e5 {[%clk 0:02:58.1]} 10.
d5 {[%clk 0:02:52.1]} 10... Nb8 {[%clk 0:02:58.2]} 11. e4 {[%clk 0:02:51.5]}
11... a5 {[%clk 0:02:40.5]} 12. Be3 {[%clk 0:02:48.5]} 12... Ng4 {[%clk
0:02:38.8]} 13. Bg5 {[%clk 0:02:47.2]} 13... f6 {[%clk 0:02:36.4]} 14. Bd2
{[%clk 0:02:47.6]} 14... Nh6 {[%clk 0:02:28.1]} 15. b4 {[%clk 0:02:39.5]} 15...
Nf7 {[%clk 0:02:27.3]} 16. c5 {[%clk 0:02:36.4]} 16... Na6 {[%clk 0:02:17.7]}
17. Be3 {[%clk 0:02:32.5]} 17... f5 {[%clk 0:02:07.9]} 18. Qd2 {[%clk
0:01:54.8]} 18... Rb8 {[%clk 0:01:23.5]} 19. Rfc1 {[%clk 0:01:49.5]} 19... axb4
{[%clk 0:01:10.2]} 20. axb4 {[%clk 0:01:49.3]} 20... Nxb4 {[%clk 0:01:09.5]} 21.
Nb5 {[%clk 0:01:23.6]} 21... Na6 {[%clk 0:01:09]} 22. Rab1 {[%clk 0:01:14.9]}
22... Nxc5 {[%clk 0:00:47.8]} 23. Bxc5 {[%clk 0:01:06.1]} 23... dxc5 {[%clk
0:00:48.7]} 24. Rxc5 {[%clk 0:01:00.4]} 24... fxe4 {[%clk 0:00:46.8]} 25. Ne1
{[%clk 0:00:59.6]} 25... c6 {[%clk 0:00:45.7]} 26. Nc3 {[%clk 0:00:52.2]} 26...
Bf8 {[%clk 0:00:23.8]} 27. Rxc6 {[%clk 0:00:52.3]} 27... bxc6 {[%clk 0:00:20.6]}
28. Rxb8 {[%clk 0:00:53.2]} 28... Qc7 {[%clk 0:00:16.9]} 29. Rb1 {[%clk
0:00:49.7]} 29... Rd8 {[%clk 0:00:13.8]} 30. Nxe4 {[%clk 0:00:46.2]} 30... Bg7
{[%clk 0:00:08.3]} 31. Qc3 {[%clk 0:00:41.4]} 31... Bd7 {[%clk 0:00:04.1]} 32.
Rc1 {[%clk 0:00:25.6]} 32... Rc8 {[%clk 0:00:04.1]} 33. Qd3 {[%clk 0:00:21.3]}
33... Bf5 {[%clk 0:00:03.4]} 34. Rxc6 {[%clk 0:00:19.6]} 34... Qd8 {[%clk
0:00:03.8]} 35. Qe2 {[%clk 0:00:14.9]} 35... Rb8 {[%clk 0:00:03.3]} 36. g4
{[%clk 0:00:13.1]} 36... Bd7 {[%clk 0:00:03]} 37. Rc1 {[%clk 0:00:12.7]} 37...
h6 {[%clk 0:00:02.3]} 38. Nc5 {[%clk 0:00:12.4]} 38... Nd6 {[%clk 0:00:01.2]}
39. Na6 {[%clk 0:00:12.4]} 1-0

[Event "*** Titled Tuesday Blitz"]
[Site "Chess.com"]
[Date "2020.10.20"]
[Round "11"]
[White "Fy_Rakotomaharo"]
[Black "ChristopherYoo"]
[Result "0-1"]
[WhiteElo "2646"]
[BlackElo "2836"]
[TimeControl "180+1"]
[EndTime "12:08:49 PDT"]
[Termination "ChristopherYoo won by resignation"]

1. e4 {[%clk 0:03:00.9]} 1... c6 {[%clk 0:02:52.4]} 2. Nf3 {[%clk 0:03:00.7]}
2... d5 {[%clk 0:02:52.4]} 3. d3 {[%clk 0:03:01.2]} 3... g6 {[%clk 0:02:46]} 4.
e5 {[%clk 0:03:01.3]} 4... Bg7 {[%clk 0:02:45.8]} 5. d4 {[%clk 0:03:01.2]} 5...
c5 {[%clk 0:02:43.5]} 6. dxc5 {[%clk 0:03:01.7]} 6... Bg4 {[%clk 0:02:41.7]} 7.
Bb5+ {[%clk 0:03:00.1]} 7... Nc6 {[%clk 0:02:38.5]} 8. O-O {[%clk 0:02:59.3]}
8... e6 {[%clk 0:02:33.9]} 9. Bxc6+ {[%clk 0:02:57.8]} 9... bxc6 {[%clk
0:02:33.7]} 10. Re1 {[%clk 0:02:56.4]} 10... Ne7 {[%clk 0:02:31.4]} 11. c3
{[%clk 0:02:49]} 11... Qc7 {[%clk 0:02:01.7]} 12. Bf4 {[%clk 0:02:45.8]} 12...
Rb8 {[%clk 0:01:51.2]} 13. b4 {[%clk 0:02:41.6]} 13... a5 {[%clk 0:01:48.1]} 14.
a3 {[%clk 0:02:40.7]} 14... O-O {[%clk 0:01:47.3]} 15. Nbd2 {[%clk 0:02:39.1]}
15... d4 {[%clk 0:01:43.2]} 16. cxd4 {[%clk 0:02:06.5]} 16... axb4 {[%clk
0:01:37.6]} 17. axb4 {[%clk 0:02:07.4]} 17... Rxb4 {[%clk 0:01:30.8]} 18. h3
{[%clk 0:02:06.9]} 18... Bf5 {[%clk 0:01:24.4]} 19. Nf1 {[%clk 0:01:50]} 19...
Nd5 {[%clk 0:01:18.3]} 20. Bd2 {[%clk 0:01:50]} 20... Rb5 {[%clk 0:01:16.1]} 21.
Ng3 {[%clk 0:01:26.1]} 21... Qd7 {[%clk 0:00:57.9]} 22. Nxf5 {[%clk 0:01:24.2]}
22... exf5 {[%clk 0:00:57.8]} 23. Qc1 {[%clk 0:01:06.7]} 23... Re8 {[%clk
0:00:45.5]} 24. Bh6 {[%clk 0:01:06.1]} 24... Nb4 {[%clk 0:00:45.5]} 25. Bxg7
{[%clk 0:01:03.9]} 25... Kxg7 {[%clk 0:00:45.4]} 26. Qg5 {[%clk 0:01:03.8]}
26... Nc2 {[%clk 0:00:39.2]} 27. Qf6+ {[%clk 0:00:58.6]} 27... Kg8 {[%clk
0:00:38.7]} 28. Qh4 {[%clk 0:00:50.3]} 28... Nxa1 {[%clk 0:00:35]} 29. Rxa1
{[%clk 0:00:49.8]} 29... Reb8 {[%clk 0:00:29.3]} 30. Kh2 {[%clk 0:00:48.5]}
30... Rb1 {[%clk 0:00:27.7]} 31. Ra6 {[%clk 0:00:41.9]} 31... Rd1 {[%clk
0:00:21.1]} 32. Qf6 {[%clk 0:00:32.3]} 32... Rc8 {[%clk 0:00:13.2]} 33. h4
{[%clk 0:00:30.2]} 33... h5 {[%clk 0:00:04.6]} 34. Qd6 {[%clk 0:00:17]} 34...
Qe8 {[%clk 0:00:04]} 35. Kg3 {[%clk 0:00:10.2]} 35... Rd3 {[%clk 0:00:03.6]} 36.
Kf4 {[%clk 0:00:10.1]} 36... Rd8 {[%clk 0:00:03.5]} 37. Qxc6 {[%clk 0:00:09.8]}
37... R8xd4+ {[%clk 0:00:03.7]} 38. Nxd4 {[%clk 0:00:09.2]} 38... Rxd4+ {[%clk
0:00:04.6]} 39. Kg5 {[%clk 0:00:03.8]} 39... Qe7+ {[%clk 0:00:02.1]} 40. Qf6
{[%clk 0:00:03.5]} 40... Rg4+ {[%clk 0:00:02.1]} 41. Kh6 {[%clk 0:00:03.9]}
41... Qf8+ {[%clk 0:00:03]} 0-1

[Event "*** Titled Tuesday Blitz"]
[Site "Chess.com"]
[Date "2020.10.20"]
[Round "11"]
[White "Kurai"]
[Black "konradrutkowski"]
[Result "1-0"]
[WhiteElo "2582"]
[BlackElo "2423"]
[TimeControl "180+1"]
[EndTime "12:08:50 PDT"]
[Termination "Kurai won by resignation"]

1. d4 {[%clk 0:03:00.9]} 1... Nf6 {[%clk 0:02:45.5]} 2. c4 {[%clk 0:03:01]} 2...
e6 {[%clk 0:02:45]} 3. Nc3 {[%clk 0:03:01.6]} 3... Bb4 {[%clk 0:02:41.9]} 4. e3
{[%clk 0:03:00.7]} 4... O-O {[%clk 0:02:41.7]} 5. Bd3 {[%clk 0:03:00.5]} 5... b6
{[%clk 0:02:39.9]} 6. Nf3 {[%clk 0:02:59.8]} 6... Bb7 {[%clk 0:02:39.5]} 7. O-O
{[%clk 0:02:59.3]} 7... d5 {[%clk 0:02:37.8]} 8. cxd5 {[%clk 0:02:54]} 8... exd5
{[%clk 0:02:34.3]} 9. a3 {[%clk 0:02:52.5]} 9... Be7 {[%clk 0:02:29]} 10. b4
{[%clk 0:02:51]} 10... Nbd7 {[%clk 0:02:20.3]} 11. Qb3 {[%clk 0:02:48.6]} 11...
Re8 {[%clk 0:02:12.8]} 12. a4 {[%clk 0:02:47.7]} 12... Nf8 {[%clk 0:02:03.5]}
13. Ba3 {[%clk 0:02:47.1]} 13... Ng6 {[%clk 0:01:57.1]} 14. b5 {[%clk
0:02:35.6]} 14... Bxa3 {[%clk 0:01:54.4]} 15. Qxa3 {[%clk 0:02:35.3]} 15... a6
{[%clk 0:01:51.2]} 16. Qb3 {[%clk 0:02:23.9]} 16... axb5 {[%clk 0:01:49.7]} 17.
axb5 {[%clk 0:02:23.8]} 17... Rxa1 {[%clk 0:01:48.8]} 18. Rxa1 {[%clk
0:02:24.7]} 18... Ne4 {[%clk 0:01:43.4]} 19. Qc2 {[%clk 0:01:59.3]} 19... Nd6
{[%clk 0:01:33.7]} 20. Na2 {[%clk 0:01:47.7]} 20... Qd7 {[%clk 0:01:08.2]} 21.
Nc3 {[%clk 0:00:29.2]} 21... Nc4 {[%clk 0:00:43.1]} 22. Ra7 {[%clk 0:00:25]}
22... Rb8 {[%clk 0:00:39.8]} 23. Qa2 {[%clk 0:00:24]} 23... Qe6 {[%clk
0:00:33.1]} 24. e4 {[%clk 0:00:17.7]} 24... Nf4 {[%clk 0:00:30.7]} 25. Bf1
{[%clk 0:00:15.8]} 25... dxe4 {[%clk 0:00:27.6]} 26. Bxc4 {[%clk 0:00:15.3]}
26... Qf6 {[%clk 0:00:25]} 27. Ne5 {[%clk 0:00:11.7]} 27... h5 {[%clk
0:00:24.3]} 28. Bxf7+ {[%clk 0:00:10.7]} 28... Kh7 {[%clk 0:00:24.9]} 29. Bc4
{[%clk 0:00:06.7]} 29... Qg5 {[%clk 0:00:24.8]} 30. g3 {[%clk 0:00:06]} 30... e3
{[%clk 0:00:25.2]} 31. Qc2+ {[%clk 0:00:03.2]} 31... g6 {[%clk 0:00:20.8]} 32.
fxe3 {[%clk 0:00:02.5]} 32... Nh3+ {[%clk 0:00:20.8]} 33. Kf1 {[%clk 0:00:03]}
33... Rf8+ {[%clk 0:00:17.5]} 34. Bf7 {[%clk 0:00:03.6]} 34... Rxf7+ {[%clk
0:00:15.9]} 35. Nxf7 {[%clk 0:00:04.5]} 35... Qf6+ {[%clk 0:00:15.6]} 36. Ke1
{[%clk 0:00:03.9]} 36... Qf3 {[%clk 0:00:14.7]} 37. Rxb7 {[%clk 0:00:04.1]}
37... Qxe3+ {[%clk 0:00:14.9]} 38. Ne2 {[%clk 0:00:03.5]} 38... Qf2+ {[%clk
0:00:12.1]} 39. Kd2 {[%clk 0:00:04.4]} 39... Qf3 {[%clk 0:00:12.3]} 40. Ne5
{[%clk 0:00:04.9]} 40... Qxb7 {[%clk 0:00:12.2]} 41. Qxg6+ {[%clk 0:00:05.6]}
41... Kh8 {[%clk 0:00:11.7]} 42. Qxh5+ {[%clk 0:00:06.2]} 1-0

[Event "*** Titled Tuesday Blitz"]
[Site "Chess.com"]
[Date "2020.10.20"]
[Round "11"]
[White "KatarinaOstojic"]
[Black "mr_gustavo"]
[Result "1-0"]
[WhiteElo "2353"]
[BlackElo "2411"]
[TimeControl "180+1"]
[EndTime "12:08:52 PDT"]
[Termination "KatarinaOstojic won by resignation"]

1. d4 {[%clk 0:03:00.9]} 1... d5 {[%clk 0:02:51.7]} 2. c4 {[%clk 0:02:59.6]}
2... c6 {[%clk 0:02:52.6]} 3. Nc3 {[%clk 0:02:59.4]} 3... Nf6 {[%clk 0:02:51.9]}
4. Nf3 {[%clk 0:02:59.7]} 4... e6 {[%clk 0:02:42.8]} 5. e3 {[%clk 0:02:59.3]}
5... Nbd7 {[%clk 0:02:42.5]} 6. Qc2 {[%clk 0:02:59.6]} 6... Bd6 {[%clk
0:02:42.1]} 7. b3 {[%clk 0:02:59.8]} 7... O-O {[%clk 0:02:41.5]} 8. Be2 {[%clk
0:03:00.2]} 8... e5 {[%clk 0:02:39.3]} 9. dxe5 {[%clk 0:02:58]} 9... Nxe5 {[%clk
0:02:39.3]} 10. cxd5 {[%clk 0:02:57.7]} 10... cxd5 {[%clk 0:02:38.5]} 11. O-O
{[%clk 0:02:55.8]} 11... Re8 {[%clk 0:02:21.8]} 12. Bb2 {[%clk 0:02:54.2]} 12...
Bg4 {[%clk 0:02:05.5]} 13. Nxe5 {[%clk 0:02:49.6]} 13... Bxe5 {[%clk 0:02:04.2]}
14. h3 {[%clk 0:02:47.9]} 14... Bxe2 {[%clk 0:02:00.5]} 15. Qxe2 {[%clk
0:02:45.6]} 15... d4 {[%clk 0:01:59.9]} 16. Nb5 {[%clk 0:02:20.3]} 16... dxe3
{[%clk 0:01:56.4]} 17. Bxe5 {[%clk 0:02:08.4]} 17... Rxe5 {[%clk 0:01:57.3]} 18.
fxe3 {[%clk 0:02:05.3]} 18... a6 {[%clk 0:01:54]} 19. Nc3 {[%clk 0:02:02.8]}
19... Qb6 {[%clk 0:01:16.7]} 20. Rf3 {[%clk 0:01:59]} 20... Rae8 {[%clk
0:01:15]} 21. Re1 {[%clk 0:01:56.4]} 21... Qc5 {[%clk 0:01:11.7]} 22. Qd2 {[%clk
0:01:53.4]} 22... b5 {[%clk 0:01:07.5]} 23. Kh2 {[%clk 0:01:50.1]} 23... b4
{[%clk 0:01:06.5]} 24. Na4 {[%clk 0:01:46.9]} 24... Qc7 {[%clk 0:01:04.4]} 25.
Kg1 {[%clk 0:01:37.7]} 25... Ne4 {[%clk 0:00:58.3]} 26. Qxb4 {[%clk 0:01:37]}
26... a5 {[%clk 0:00:43.4]} 27. Qd4 {[%clk 0:01:21.7]} 27... Qc2 {[%clk
0:00:40.9]} 28. Qd7 {[%clk 0:01:13.8]} 28... f6 {[%clk 0:00:36.6]} 29. Nb6
{[%clk 0:01:05.8]} 29... Rf8 {[%clk 0:00:32.9]} 30. Nc4 {[%clk 0:01:00.3]} 30...
Rg5 {[%clk 0:00:31.2]} 31. Qe6+ {[%clk 0:00:54.6]} 31... Kh8 {[%clk 0:00:29.7]}
32. g4 {[%clk 0:00:51.4]} 32... h5 {[%clk 0:00:28.9]} 33. Rf4 {[%clk 0:00:39.5]}
33... hxg4 {[%clk 0:00:26.6]} 34. Qxe4 {[%clk 0:00:39.4]} 34... gxh3+ {[%clk
0:00:23.8]} 35. Kh1 {[%clk 0:00:39.7]} 35... Qg2+ {[%clk 0:00:05.2]} 36. Qxg2
{[%clk 0:00:39.3]} 36... hxg2+ {[%clk 0:00:06.1]} 37. Kg1 {[%clk 0:00:39.4]}
37... Rd8 {[%clk 0:00:07]} 38. Rh4+ {[%clk 0:00:37.2]} 38... Kg8 {[%clk
0:00:06.8]} 39. Rh2 {[%clk 0:00:37.8]} 39... Rd3 {[%clk 0:00:02.3]} 40. Rxg2
{[%clk 0:00:36.4]} 40... Rxg2+ {[%clk 0:00:03.2]} 41. Kxg2 {[%clk 0:00:37.3]}
41... Rc3 {[%clk 0:00:04.1]} 42. Nxa5 {[%clk 0:00:31]} 42... Rc2+ {[%clk
0:00:04]} 43. Kf3 {[%clk 0:00:31.6]} 43... Rxa2 {[%clk 0:00:04.9]} 44. Nc4
{[%clk 0:00:30.2]} 44... Rc2 {[%clk 0:00:04]} 45. Rb1 {[%clk 0:00:29.8]} 45...
g5 {[%clk 0:00:04.4]} 46. Nd6 {[%clk 0:00:28.2]} 46... Kg7 {[%clk 0:00:03]} 47.
b4 {[%clk 0:00:28.8]} 47... Rc6 {[%clk 0:00:03.3]} 48. Nf5+ {[%clk 0:00:28.1]}
48... Kg6 {[%clk 0:00:03.9]} 49. Ne7+ {[%clk 0:00:27.7]} 1-0

[Event "*** Titled Tuesday Blitz"]
[Site "Chess.com"]
[Date "2020.10.20"]
[Round "11"]
[White "Tooweak2slow03"]
[Black "TigrVShlyape"]
[Result "0-1"]
[WhiteElo "2788"]
[BlackElo "2873"]
[TimeControl "180+1"]
[EndTime "12:08:53 PDT"]
[Termination "TigrVShlyape won by resignation"]

1. e4 {[%clk 0:03:00.9]} 1... e5 {[%clk 0:02:59.5]} 2. Nf3 {[%clk 0:03:01.5]}
2... Nc6 {[%clk 0:02:57.3]} 3. Nc3 {[%clk 0:03:02.4]} 3... Nf6 {[%clk
0:02:55.3]} 4. a3 {[%clk 0:03:02.3]} 4... d6 {[%clk 0:02:53.3]} 5. d4 {[%clk
0:03:01.9]} 5... Bg4 {[%clk 0:02:52.5]} 6. d5 {[%clk 0:03:02.1]} 6... Nb8 {[%clk
0:02:51.5]} 7. Be2 {[%clk 0:02:58.9]} 7... Bxf3 {[%clk 0:02:50.2]} 8. Bxf3
{[%clk 0:02:58.5]} 8... g6 {[%clk 0:02:50.3]} 9. Be3 {[%clk 0:02:58.4]} 9...
Nbd7 {[%clk 0:02:48.9]} 10. Qd2 {[%clk 0:02:58.1]} 10... h5 {[%clk 0:02:49]} 11.
h3 {[%clk 0:02:56.2]} 11... Ng8 {[%clk 0:02:48.9]} 12. O-O-O {[%clk 0:02:54.2]}
12... Bh6 {[%clk 0:02:48.5]} 13. g4 {[%clk 0:02:53.4]} 13... Bxe3 {[%clk
0:02:47.3]} 14. Qxe3 {[%clk 0:02:54.3]} 14... Ngf6 {[%clk 0:02:44.3]} 15. Rdg1
{[%clk 0:02:51.5]} 15... a6 {[%clk 0:02:43.2]} 16. g5 {[%clk 0:02:42.2]} 16...
Nh7 {[%clk 0:02:42.2]} 17. h4 {[%clk 0:02:42.6]} 17... Qb8 {[%clk 0:02:36.6]}
18. Be2 {[%clk 0:02:42.3]} 18... Qa7 {[%clk 0:02:36.7]} 19. Qg3 {[%clk
0:02:33.9]} 19... Nhf8 {[%clk 0:02:35.3]} 20. f4 {[%clk 0:02:33.1]} 20... exf4
{[%clk 0:02:34.8]} 21. Qxf4 {[%clk 0:02:34]} 21... Ne5 {[%clk 0:02:34.8]} 22.
Rf1 {[%clk 0:02:26.7]} 22... Nfd7 {[%clk 0:02:34.4]} 23. Bd3 {[%clk 0:02:16.9]}
23... O-O-O {[%clk 0:02:33.3]} 24. Nd1 {[%clk 0:02:09.2]} 24... Rdf8 {[%clk
0:02:31.5]} 25. Ne3 {[%clk 0:02:04.6]} 25... Qd4 {[%clk 0:02:29.5]} 26. Rd1
{[%clk 0:01:50.3]} 26... Nc5 {[%clk 0:02:27.7]} 27. Bxa6 {[%clk 0:01:29]} 27...
Qxe4 {[%clk 0:02:25.9]} 28. Qxe4 {[%clk 0:01:28]} 28... Nxe4 {[%clk 0:02:26]}
29. Rd4 {[%clk 0:01:25.7]} 29... Nf2 {[%clk 0:02:11.6]} 30. Rf1 {[%clk
0:01:24.5]} 30... Nfg4 {[%clk 0:02:11.5]} 31. Nxg4 {[%clk 0:01:22.6]} 31... hxg4
{[%clk 0:02:11.7]} 32. Be2 {[%clk 0:01:21.3]} 32... Rxh4 {[%clk 0:02:11.5]} 33.
Rff4 {[%clk 0:01:21.3]} 33... Rh1+ {[%clk 0:02:08.7]} 34. Kd2 {[%clk 0:01:21]}
34... Rh2 {[%clk 0:02:08.4]} 35. Ke3 {[%clk 0:01:19.7]} 35... g3 {[%clk
0:02:08.6]} 36. Ra4 {[%clk 0:01:13.1]} 36... Kd7 {[%clk 0:02:03.1]} 37. Rf1
{[%clk 0:01:03.1]} 37... Rfh8 {[%clk 0:01:54.7]} 38. Rg1 {[%clk 0:00:59.2]}
38... Re8 {[%clk 0:01:38.6]} 39. Rxg3 {[%clk 0:00:49.8]} 39... Ng4+ {[%clk
0:01:27.1]} 40. Kd4 {[%clk 0:00:45.6]} 40... Rexe2 {[%clk 0:01:25.7]} 41. Rxg4
{[%clk 0:00:46]} 41... Rd2+ {[%clk 0:01:21.9]} 42. Ke3 {[%clk 0:00:42.6]} 42...
Rhe2+ {[%clk 0:01:19.4]} 43. Kf3 {[%clk 0:00:42.5]} 43... Rxc2 {[%clk
0:01:19.6]} 44. b4 {[%clk 0:00:40.2]} 44... Rf2+ {[%clk 0:01:13.6]} 45. Kg3
{[%clk 0:00:39.6]} 45... Rf5 {[%clk 0:01:11.9]} 46. Ra7 {[%clk 0:00:36.9]} 46...
b5 {[%clk 0:01:11.4]} 47. Ra8 {[%clk 0:00:31.8]} 47... Rxd5 {[%clk 0:01:07]} 48.
Rf4 {[%clk 0:00:31.6]} 48... Rxg5+ {[%clk 0:01:06.6]} 49. Kf3 {[%clk 0:00:29.1]}
49... Rf5 {[%clk 0:01:06.4]} 50. Rxf5 {[%clk 0:00:27.9]} 50... gxf5 {[%clk
0:01:06.7]} 51. a4 {[%clk 0:00:28.4]} 51... bxa4 {[%clk 0:01:03.7]} 52. Rxa4
{[%clk 0:00:29.3]} 52... Rc4 {[%clk 0:01:03.5]} 53. Ke3 {[%clk 0:00:27.8]} 53...
Re4+ {[%clk 0:01:02.6]} 54. Kf3 {[%clk 0:00:28]} 54... Kc6 {[%clk 0:01:00.6]}
55. Ra5 {[%clk 0:00:26.2]} 55... Rxb4 {[%clk 0:00:59.7]} 56. Rxf5 {[%clk
0:00:25.5]} 56... d5 {[%clk 0:00:56.4]} 57. Rxf7 {[%clk 0:00:24.6]} 57... Re4
{[%clk 0:00:55.4]} 58. Rf8 {[%clk 0:00:24.6]} 58... Kc5 {[%clk 0:00:54.8]} 59.
Ra8 {[%clk 0:00:24.2]} 59... c6 {[%clk 0:00:54.6]} 60. Ra5+ {[%clk 0:00:24.7]}
60... Kb6 {[%clk 0:00:54.5]} 61. Ra8 {[%clk 0:00:24.1]} 61... c5 {[%clk
0:00:54.4]} 62. Rd8 {[%clk 0:00:24]} 62... Kc6 {[%clk 0:00:54.5]} 63. Rc8+
{[%clk 0:00:24.2]} 63... Kb5 {[%clk 0:00:54.7]} 64. Rd8 {[%clk 0:00:24.3]} 64...
Kc4 {[%clk 0:00:54.9]} 65. Ra8 {[%clk 0:00:24.2]} 65... Re7 {[%clk 0:00:53.7]}
66. Kf2 {[%clk 0:00:22.6]} 66... d4 {[%clk 0:00:53.5]} 67. Ra7 {[%clk
0:00:22.3]} 0-1